bitfinex/quotes_BTCUSD_20251016
["timestamp","ask_amount","ask_price","bid_price","bid_amount"]
[1760630576625,5.32837252,108590.0,108580.0,8.27900735]
[1760630576846,5.36004182,108590.0,108580.0,8.27900735]
[1760630577057,5.36004388,108590.0,108580.0,8.27900735]
[1760630577265,0.72175388,108590.0,108580.0,8.27900735]
[1760630577479,5.36004388,108590.0,108580.0,8.27900735]
[1760630577918,5.36004388,108590.0,108580.0,8.02900735]
[1760630577919,5.32837458,108590.0,108580.0,8.02900735]
[1760630578608,5.36455686,108590.0,108580.0,8.02900735]
[1760630578812,5.37455686,108590.0,108580.0,8.02900735]
[1760630579229,5.33913025,108590.0,108580.0,8.02900735]
[1760630579444,5.33913025,108590.0,108580.0,8.02904735]
[1760630579868,5.33913025,108590.0,108580.0,7.48030982]
[1760630580288,5.33913025,108590.0,108580.0,7.48034982]
[1760630580726,4.93892785,108590.0,108580.0,7.48034982]
[1760630580976,0.30063785,108590.0,108580.0,7.48038982]
[1760630581194,0.24550455,108590.0,108580.0,7.48038982]
[1760630581405,0.24550455,108590.0,108580.0,7.48042982]
[1760630581829,0.28168683,108590.0,108580.0,7.48042982]
[1760630582083,4.91997683,108590.0,108580.0,7.05890892]
[1760630582332,4.93892785,108590.0,108580.0,7.05890892]
[1760630582548,0.26445557,108590.0,108580.0,7.05890892]
[1760630582767,0.24550455,108590.0,108580.0,7.05894892]
[1760630582975,0.06132553,108590.0,108580.0,7.05894892]
[1760630583186,0.06132553,108590.0,108580.0,7.05898892]
[1760630583187,0.24550455,108590.0,108580.0,7.05898892]
[1760630583644,0.58550455,108590.0,108580.0,7.05898892]
[1760630583863,0.64063785,108590.0,108580.0,7.05902892]
[1760630584291,0.64063785,108590.0,108580.0,7.05906892]
[1760630584500,0.60445557,108590.0,108580.0,7.05906892]
[1760630584781,0.60445557,108590.0,108580.0,7.2433049]
[1760630584782,0.06132553,108590.0,108580.0,7.2433049]
[1760630585289,0.24550455,108590.0,108580.0,7.05910892]
[1760630585529,0.06132553,108590.0,108580.0,7.05914892]
[1760630585969,0.24550455,108590.0,108580.0,7.05918892]
[1760630586480,0.24550455,108590.0,108580.0,7.2434249]
[1760630586481,0.06132553,108590.0,108580.0,7.2434249]
[1760630586932,0.06132553,108590.0,108580.0,7.2434649]
[1760630587394,0.04487177,108590.0,108580.0,7.2434649]
[1760630587644,0.0613633,108590.0,108580.0,7.2435049]
[1760630588093,0.04487177,108590.0,108580.0,7.2445049]
[1760630588305,0.04487177,108590.0,108580.0,7.2445449]
[1760630590497,0.04487177,108590.0,108580.0,7.5845449]
[1760630590713,0.04487177,108590.0,108580.0,7.2445449]
[1760630591150,0.04487177,108590.0,108580.0,7.2435449]
[1760630591593,0.04487177,108590.0,108580.0,7.2455449]
[1760630591805,0.06139899,108590.0,108580.0,7.2435449]
[1760630592238,0.04487177,108590.0,108580.0,7.2435449]
[1760630592452,0.04487177,108590.0,108580.0,7.76080285]
[1760630592453,1e-08,108590.0,108580.0,7.76080285]
[1760630592672,3.365377,108600.0,108590.0,0.52417902]
[1760630592954,3.365377,108600.0,108590.0,1.16745931]
[1760630592955,3.17162403,108600.0,108590.0,1.16745931]
[1760630593206,2.84779584,108600.0,108590.0,1.16745931]
[1760630593448,2.07840452,108600.0,108590.0,6.56745931]
[1760630593671,2.04373988,108600.0,108590.0,6.56745931]
[1760630593878,1.94394982,108600.0,108590.0,6.56745931]
[1760630594096,1.38885639,108600.0,108590.0,6.56745931]
[1760630594379,1.01703016,108600.0,108590.0,6.05120136]
[1760630594599,0.93857203,108600.0,108590.0,6.05020136]
[1760630594821,0.90839413,108600.0,108590.0,6.56745931]
[1760630595082,0.8741721,108600.0,108590.0,6.57045931]
[1760630595304,0.14049561,108600.0,108590.0,6.57045931]
[1760630595534,1e-08,108600.0,108590.0,6.57045931]
[1760630595759,0.01839673,108650.0,108640.0,0.18409425]
[1760630595966,0.15492886,108650.0,108640.0,0.18409425]
[1760630596183,0.13653213,108650.0,108630.0,0.1841112]
[1760630596395,0.13653213,108650.0,108640.0,0.18409425]
[1760630596602,0.12,108650.0,108640.0,0.18409425]
[1760630596863,0.13652832,108650.0,108640.0,0.18409425]
[1760630597080,0.13652832,108650.0,108640.0,0.001]
[1760630597081,0.1365784,108650.0,108640.0,0.001]
[1760630597292,0.32065571,108650.0,108640.0,0.001]
[1760630597934,0.32065571,108650.0,108620.0,0.18412785]
[1760630597935,0.18409425,108640.0,108620.0,0.19333235]
[1760630598158,0.31062257,108640.0,108620.0,0.18412797]
[1760630598365,0.31062257,108640.0,108610.0,0.21170067]
[1760630598592,0.31062257,108640.0,108620.0,0.18412549]
[1760630598802,0.31062476,108640.0,108600.0,0.1933699]
[1760630599017,0.31062476,108640.0,108620.0,0.18411527]
[1760630599018,0.12652832,108640.0,108620.0,0.18411527]
[1760630599226,0.12652832,108640.0,108630.0,0.7155003]
[1760630599436,0.11,108640.0,108630.0,0.1841112]
[1760630599873,0.12651771,108640.0,108630.0,0.1841112]
[1760630600510,0.12651624,108640.0,108630.0,0.1851112]
[1760630600754,0.11,108640.0,108630.0,0.1841112]
[1760630600968,0.12651583,108640.0,108630.0,0.1841112]
[1760630601197,0.31062439,108640.0,108630.0,0.001]
[1760630601415,0.12651583,108640.0,108630.0,0.001]
[1760630601626,0.12651583,108640.0,108630.0,0.1851112]
[1760630602105,0.31061008,108640.0,108630.0,0.001]
[1760630602528,0.12651041,108640.0,108630.0,0.1851112]
[1760630602961,0.31060466,108640.0,108630.0,0.001]
[1760630603380,0.31060518,108640.0,108630.0,0.001]
[1760630603616,0.65060518,108640.0,108630.0,0.001]
[1760630603826,0.66964098,108640.0,108630.0,0.001]
[1760630604452,0.70582326,108640.0,108630.0,0.001]
[1760630605298,0.72954568,108640.0,108630.0,0.001]
[1760630605510,0.72954568,108640.0,108590.0,0.01839673]
[1760630605511,0.18416206,108600.0,108590.0,0.01839673]
[1760630605729,0.11,108600.0,108590.0,0.01839673]
[1760630605955,0.11,108600.0,108580.0,7.05934892]
[1760630605956,0.29416206,108600.0,108580.0,7.05934892]
[1760630606167,0.18417902,108590.0,108580.0,7.05934892]
[1760630606380,0.29417902,108590.0,108580.0,7.05934892]
[1760630606822,0.29417902,108590.0,108580.0,7.05949886]
[1760630607510,0.29417902,108590.0,108580.0,7.06049886]
[1760630607511,0.65069646,108590.0,108580.0,7.06049886]
[1760630607722,0.70588559,108590.0,108580.0,7.05949886]
[1760630609036,0.68936815,108590.0,108580.0,7.05949886]
[1760630609483,0.68936815,108590.0,108580.0,7.06049886]
[1760630609692,0.68936815,108590.0,108580.0,7.05949886]
[1760630609914,0.6703613,108590.0,108580.0,7.05949886]
[1760630610353,0.63417902,108590.0,108580.0,7.05949886]
[1760630610804,0.11,108590.0,108580.0,7.24369484]
[1760630611020,0.11,108590.0,108580.0,7.05949886]
[1760630611251,0.11,108590.0,108580.0,7.24369484]
[1760630611696,0.29417902,108590.0,108580.0,7.05949886]
[1760630612825,0.46026695,108590.0,108580.0,7.05949886]
[1760630613043,0.53026695,108590.0,108580.0,7.05949886]
[1760630613482,0.53026695,108590.0,108580.0,7.24369484]
[1760630613483,0.07,108590.0,108580.0,7.24369484]
[1760630614818,0.0421,108590.0,108580.0,7.05949886]
[1760630615023,0.0421,108590.0,108580.0,7.23369484]
[1760630615244,0.0421,108590.0,108580.0,7.04949886]
[1760630615245,0.22627902,108590.0,108580.0,7.04949886]
[1760630615872,0.0421,108590.0,108580.0,7.04949886]
[1760630616083,0.0421,108590.0,108580.0,7.23469484]
[1760630616727,0.22627902,108590.0,108580.0,7.05049886]
[1760630616938,0.0421,108590.0,108580.0,7.23469484]
[1760630618741,0.22627902,108590.0,108580.0,7.05049886]
[1760630618955,0.0421,108590.0,108580.0,7.05049886]
[1760630619220,0.0421,108590.0,108580.0,7.23469484]
[1760630621850,0.22627902,108590.0,108580.0,7.05049886]
[1760630622055,0.0421,108590.0,108580.0,7.05049886]
[1760630622266,0.22627902,108590.0,108580.0,7.05049886]
[1760630622914,0.0421,108590.0,108580.0,7.23469484]
[1760630625869,0.0421,108590.0,108580.0,7.05049886]
[1760630626288,0.0421,108590.0,108580.0,7.23469484]
[1760630626696,0.22627902,108590.0,108580.0,7.05049886]
[1760630627109,0.0421,108590.0,108580.0,7.05053886]
[1760630627321,0.0421,108590.0,108580.0,7.23473484]
[1760630627725,0.0421,108590.0,108580.0,7.23477484]
[1760630628386,0.0421,108590.0,108580.0,7.23481484]
[1760630628613,0.0421,108590.0,108580.0,7.05061886]
[1760630628829,0.22627902,108590.0,108580.0,7.05061886]
[1760630629041,0.0421,108590.0,108580.0,7.05065886]
[1760630629294,0.22627902,108590.0,108580.0,7.05065886]
[1760630629508,0.22627902,108590.0,108580.0,7.23489484]
[1760630629730,0.0421,108590.0,108580.0,7.23489484]
[1760630629947,0.22627902,108590.0,108580.0,7.23489484]
[1760630630159,0.0421,108590.0,108580.0,7.23489484]
[1760630630375,0.0421,108590.0,108580.0,7.23493484]
[1760630630376,0.22627902,108590.0,108580.0,7.23493484]
[1760630630586,0.22627902,108590.0,108580.0,7.05073886]
[1760630631024,0.56627902,108590.0,108580.0,7.05077886]
[1760630631446,0.58534557,108590.0,108580.0,7.05077886]
[1760630631654,0.58534557,108590.0,108580.0,7.05081886]
[1760630632319,0.58534557,108590.0,108580.0,7.05085886]
[1760630633420,0.58534557,108590.0,108580.0,7.04985886]
[1760630633846,0.56627902,108590.0,108580.0,7.04989886]
[1760630634066,0.58534644,108590.0,108580.0,7.04989886]
[1760630635367,0.58534644,108590.0,108580.0,7.04993886]
[1760630635574,0.58534644,108590.0,108580.0,7.03896997]
[1760630635830,0.24534644,108590.0,108580.0,7.22316595]
[1760630636048,0.0421,108590.0,108580.0,7.22316595]
[1760630636268,0.0421,108590.0,108580.0,7.22320595]
[1760630637147,0.0421,108590.0,108580.0,7.22324595]
[1760630637362,0.0321,108590.0,108580.0,7.22324595]
[1760630637792,0.0321,108590.0,108580.0,7.22328595]
[1760630638429,0.0321,108590.0,108580.0,7.22428595]
[1760630638641,0.0321,108590.0,108580.0,7.22432595]
[1760630639077,0.0321,108590.0,108580.0,7.22332595]
[1760630639293,0.0321,108590.0,108580.0,7.22336595]
[1760630639500,0.0321,108590.0,108580.0,7.22536595]
[1760630640139,0.0321,108590.0,108580.0,7.22540595]
[1760630640350,0.0321,108590.0,108580.0,7.22340595]
[1760630640781,0.0321,108590.0,108580.0,7.22344595]
[1760630641650,0.0321,108590.0,108580.0,7.22548595]
[1760630642089,0.21627902,108590.0,108580.0,7.04128997]
[1760630642302,0.21627902,108590.0,108580.0,7.04132997]
[1760630642515,0.21627902,108590.0,108580.0,7.03932997]
[1760630642959,0.0321,108590.0,108580.0,7.04032997]
[1760630643162,0.0321,108590.0,108580.0,7.03932997]
[1760630643426,0.21627902,108590.0,108580.0,7.04032997]
[1760630643641,0.21627902,108590.0,108580.0,7.22452595]
[1760630643853,0.0321,108590.0,108580.0,7.22452595]
[1760630644943,0.04964677,108590.0,108580.0,7.04032997]
[1760630645216,0.17964677,108590.0,108580.0,7.04032997]
[1760630645445,0.13928209,108600.0,108580.0,7.04032997]
[1760630645657,0.52417902,108590.0,108580.0,7.04032997]
[1760630645859,0.63417902,108590.0,108580.0,7.04032997]
[1760630646507,0.65328333,108590.0,108580.0,7.04032997]
[1760630647835,0.65328333,108590.0,108580.0,7.03932997]
[1760630648266,0.65328333,108590.0,108580.0,7.04032997]
[1760630648687,0.65328333,108590.0,108580.0,7.03932997]
[1760630649111,0.65328333,108590.0,108580.0,6.58413117]
[1760630649763,5.32775561,108590.0,108580.0,5.91196068]
[1760630649984,5.32775561,108590.0,108580.0,5.83962382]
[1760630651511,5.35775561,108590.0,108580.0,5.83962382]
[1760630651735,5.38152725,108590.0,108580.0,5.83962382]
[1760630652427,5.34534497,108590.0,108580.0,5.83962382]
[1760630652641,5.34534497,108590.0,108580.0,5.82962382]
[1760630652851,5.35775561,108590.0,108580.0,5.82962382]
[1760630653530,0.68328333,108590.0,108580.0,5.82962382]
[1760630653788,0.34328333,108590.0,108580.0,5.82962382]
[1760630654007,0.32417902,108590.0,108580.0,5.82962382]
[1760630654226,0.66417902,108590.0,108580.0,5.82962382]
[1760630654453,0.68328333,108590.0,108580.0,5.82962382]
[1760630654899,0.32417902,108590.0,108580.0,5.82962382]
[1760630655134,0.29417902,108590.0,108580.0,5.82962382]
[1760630655348,0.63417902,108590.0,108580.0,5.82962382]
[1760630655796,0.65326275,108590.0,108580.0,5.82962382]
[1760630656631,5.29155275,108590.0,108580.0,5.82962382]
[1760630656848,5.29155275,108590.0,108580.0,5.37860806]
[1760630657299,5.34429824,108590.0,108580.0,4.78936281]
[1760630657721,5.34429824,108590.0,108580.0,4.636295]
[1760630657933,5.76806988,108590.0,108580.0,4.00411257]
[1760630658144,6.14429824,108590.0,108580.0,3.52114411]
[1760630658364,6.17596754,108590.0,108580.0,3.22427523]
[1760630658572,6.14429824,108590.0,108580.0,3.14476809]
[1760630658839,6.14426431,108590.0,108580.0,3.05706346]
[1760630659025,6.19176827,108590.0,108580.0,2.87405621]
[1760630659232,6.07176827,108590.0,108580.0,2.4436618]
[1760630659441,6.07176827,108590.0,108580.0,2.27088134]
[1760630659682,6.07176827,108590.0,108580.0,0.00134994]
[1760630659893,6.07176827,108590.0,108540.0,0.51045184]
[1760630659894,0.43618228,108550.0,108540.0,0.51045184]
[1760630660139,2.74857819,108550.0,108540.0,0.51045184]
[1760630660353,2.74857819,108550.0,108540.0,0.46445184]
[1760630660572,2.74857819,108550.0,108540.0,0.14757012]
[1760630660779,3.15707819,108550.0,108540.0,0.12036781]
[1760630661005,3.15907819,108550.0,108540.0,0.12036781]
[1760630661441,3.15907819,108550.0,108540.0,1e-08]
[1760630661666,2.9527281,108520.0,108510.0,1e-08]
[1760630661880,2.74608933,108520.0,108510.0,1e-08]
[1760630662100,3.14608933,108520.0,108510.0,1e-08]
[1760630662995,3.15458933,108520.0,108510.0,1e-08]
[1760630663206,2.55274508,108510.0,108500.0,5.87893219]
[1760630663440,2.70281194,108510.0,108500.0,5.87893219]
[1760630663682,2.70281194,108510.0,108500.0,5.30454]
[1760630663683,2.72653095,108510.0,108500.0,5.30454]
[1760630663912,3.12653095,108510.0,108500.0,5.21891595]
[1760630664159,3.14295758,108510.0,108500.0,4.91754886]
[1760630664373,3.14295758,108510.0,108500.0,4.69820955]
[1760630664374,3.48700583,108510.0,108500.0,4.69820955]
[1760630664584,3.49420071,108510.0,108500.0,4.69820955]
[1760630665085,2.71660026,108510.0,108500.0,4.69820955]
[1760630665359,2.71560026,108510.0,108500.0,4.69820955]
[1760630665603,3.19197875,108510.0,108500.0,4.69820955]
[1760630666390,2.63148167,108510.0,108500.0,4.69820955]
[1760630666750,0.63923367,108510.0,108500.0,4.69820955]
[1760630667002,0.12114994,108510.0,108500.0,4.69820955]
[1760630667202,0.12014994,108510.0,108500.0,4.69820955]
[1760630667627,0.12014994,108510.0,108500.0,4.88254134]
[1760630668100,0.12014994,108510.0,108500.0,4.69820955]
[1760630668377,0.12014994,108510.0,108500.0,4.68820955]
[1760630668639,2.29671274,108510.0,108500.0,4.68820955]
[1760630668878,2.65559106,108510.0,108500.0,4.68820955]
[1760630669603,2.47127626,108510.0,108500.0,4.68820955]
[1760630669804,2.95559106,108510.0,108500.0,4.18820955]
[1760630670018,2.77127626,108510.0,108500.0,4.18820955]
[1760630670246,0.77902826,108510.0,108500.0,4.18820955]
[1760630670480,0.96334306,108510.0,108500.0,4.18820955]
[1760630670699,2.99177334,108510.0,108500.0,4.18820955]
[1760630671120,3.01539485,108510.0,108500.0,4.18820955]
[1760630671553,2.99177334,108510.0,108500.0,4.18820955]
[1760630671978,3.01539485,108510.0,108500.0,4.18820955]
[1760630672406,3.45559106,108510.0,108500.0,4.18820955]
[1760630672624,3.47917621,108510.0,108500.0,4.18820955]
[1760630672842,3.45559106,108510.0,108500.0,4.18820955]
[1760630673089,3.55361106,108510.0,108500.0,4.18820955]
[1760630673299,3.45559106,108510.0,108500.0,4.18820955]
[1760630673513,3.47917621,108510.0,108500.0,4.18820955]
[1760630673727,3.51635849,108510.0,108500.0,4.18820955]
[1760630673955,3.45559106,108510.0,108500.0,4.18820955]
[1760630674408,3.47917621,108510.0,108500.0,4.18820955]
[1760630674613,3.51535849,108510.0,108500.0,4.18820955]
[1760630674829,3.91535849,108510.0,108500.0,4.18820955]
[1760630675034,3.91536369,108510.0,108500.0,3.74589883]
[1760630675242,3.9234749,108510.0,108500.0,3.74589883]
[1760630675453,3.89177334,108510.0,108500.0,3.74589883]
[1760630675662,3.51536847,108510.0,108500.0,3.74589883]
[1760630676090,3.9234749,108510.0,108500.0,3.74589883]
[1760630676294,3.94085737,108510.0,108500.0,3.74589883]
[1760630676514,4.31845782,108510.0,108500.0,3.74589883]
[1760630676935,3.50915581,108510.0,108500.0,3.74589883]
[1760630677147,3.01636715,108510.0,108500.0,3.74589883]
[1760630677790,2.64018487,108510.0,108500.0,3.74589883]
[1760630678007,2.61659106,108510.0,108500.0,3.74589883]
[1760630678221,2.98018487,108510.0,108500.0,3.74589883]
[1760630678428,3.38018487,108510.0,108500.0,3.74589883]
[1760630678671,3.41636715,108510.0,108500.0,3.74589883]
[1760630678918,3.01636715,108510.0,108500.0,3.74589883]
[1760630679171,2.98018487,108510.0,108500.0,3.74589883]
[1760630679726,0.68411915,108510.0,108500.0,3.74589883]
[1760630679923,5.68411915,108510.0,108500.0,3.74589883]
[1760630680130,5.98793687,108510.0,108500.0,3.74589883]
[1760630680371,0.98793687,108510.0,108500.0,3.74589883]
[1760630680639,0.98693687,108510.0,108500.0,3.74589883]
[1760630680880,0.46262207,108510.0,108500.0,3.74589883]
[1760630681134,0.43902826,108510.0,108500.0,3.74589883]
[1760630681370,0.43902826,108510.0,108500.0,3.24589883]
[1760630681609,0.46262207,108510.0,108500.0,3.24589883]
[1760630681883,0.43905001,108510.0,108500.0,3.24589883]
[1760630682125,1.12336481,108510.0,108500.0,3.24589883]
[1760630682373,1.4869899,108510.0,108500.0,3.24593883]
[1760630682615,6.86336481,108510.0,108500.0,3.24593883]
[1760630682851,6.49506637,108510.0,108500.0,3.24593883]
[1760630683100,6.49506637,108510.0,108500.0,3.24597883]
[1760630683101,6.48700468,108510.0,108500.0,3.24597883]
[1760630683338,1.31075157,108510.0,108500.0,3.24597883]
[1760630683577,0.96270376,108510.0,108500.0,3.24601883]
[1760630683830,0.96270376,108510.0,108500.0,2.74601883]
[1760630683831,0.93905001,108510.0,108500.0,2.74601883]
[1760630684105,0.93905001,108510.0,108500.0,2.74605883]
[1760630684585,1.12336481,108510.0,108500.0,2.74609883]
[1760630685059,6.46336481,108510.0,108500.0,2.74613883]
[1760630685303,6.48701856,108510.0,108500.0,2.74613883]
[1760630685542,6.53967119,108510.0,108500.0,2.32272597]
[1760630685800,6.547719,108510.0,108500.0,2.32276597]
[1760630686012,6.51153672,108510.0,108500.0,2.32276597]
[1760630686232,6.51153622,108510.0,108500.0,2.32280597]
[1760630686492,1.50357578,108510.0,108500.0,2.32280597]
[1760630686724,1.50357578,108510.0,108500.0,2.32284597]
[1760630686725,1.4871059,108510.0,108500.0,2.32284597]
[1760630686935,6.50359835,108510.0,108500.0,2.32284597]
[1760630687145,6.51155882,108510.0,108500.0,2.32288597]
[1760630687352,6.51156054,108510.0,108500.0,2.32288597]
[1760630687573,1.51156054,108510.0,108500.0,2.32288597]
[1760630687803,1.51156054,108510.0,108500.0,2.32292597]
[1760630688476,1.51156054,108510.0,108500.0,2.32296597]
[1760630688688,6.51156054,108510.0,108500.0,2.32296597]
[1760630688893,6.02741133,108510.0,108500.0,2.32300597]
[1760630689600,6.06359361,108510.0,108500.0,1.59655665]
[1760630689806,6.01604126,108510.0,108500.0,1.59655665]
[1760630690234,6.01604126,108510.0,108500.0,1.58959665]
[1760630690720,6.06366866,108510.0,108500.0,1.58963665]
[1760630690919,6.01604126,108510.0,108500.0,1.58963665]
[1760630691131,6.06367198,108510.0,108500.0,1.58963665]
[1760630691398,6.01604126,108510.0,108500.0,1.58967665]
[1760630691812,6.01704126,108510.0,108500.0,1.58971665]
[1760630692067,5.97985898,108510.0,108500.0,1.58971665]
[1760630692283,0.68751103,108510.0,108500.0,1.58971665]
[1760630692488,0.67163032,108510.0,108500.0,1.58975665]
[1760630692908,0.98731552,108510.0,108500.0,1.58975665]
[1760630693132,0.98731552,108510.0,108500.0,1.58979665]
[1760630693372,1.13985898,108510.0,108500.0,1.58979665]
[1760630693627,0.98731552,108510.0,108500.0,1.58979665]
[1760630693845,0.95554418,108510.0,108500.0,1.58983665]
[1760630694107,0.96287702,108510.0,108500.0,1.58983665]
[1760630694586,0.96287702,108510.0,108500.0,1.58987665]
[1760630694818,0.93905001,108510.0,108500.0,1.58987665]
[1760630695034,0.93905001,108510.0,108500.0,1.58991665]
[1760630695758,0.93905001,108510.0,108500.0,1.77428844]
[1760630695964,0.93905001,108510.0,108500.0,1.58995665]
[1760630696380,0.93905001,108510.0,108500.0,1.58999665]
[1760630696592,0.93905001,108510.0,108500.0,1.77432844]
[1760630696806,0.93602823,108510.0,108500.0,1.77432844]
[1760630697015,0.91712816,108510.0,108500.0,2.33000218]
[1760630697441,0.91465636,108510.0,108500.0,2.33000218]
[1760630697650,0.91465636,108510.0,108500.0,2.33004218]
[1760630697864,0.41465636,108510.0,108500.0,2.33004218]
[1760630698079,0.30014994,108510.0,108500.0,2.33004218]
[1760630698299,0.01839673,108550.0,108540.0,0.18426386]
[1760630698508,0.13854734,108550.0,108540.0,0.18426386]
[1760630698927,0.12015061,108550.0,108540.0,0.18426386]
[1760630699341,0.12015061,108550.0,108540.0,0.70371532]
[1760630699574,0.12015061,108550.0,108540.0,0.18426386]
[1760630700556,0.12015061,108550.0,108540.0,0.70358132]
[1760630700806,0.10697952,108550.0,108540.0,1.0797636]
[1760630701059,0.05559835,108590.0,108580.0,0.22037826]
[1760630701292,0.01903812,108600.0,108580.0,0.22037826]
[1760630701293,0.01839673,108600.0,108590.0,0.5603613]
[1760630701543,0.04242374,108620.0,108610.0,0.1841451]
[1760630701770,0.07035066,108620.0,108610.0,1.17725884]
[1760630701969,0.07035066,108620.0,108610.0,1.57725884]
[1760630702209,1e-08,108620.0,108610.0,6.57725884]
[1760630702451,1e-08,108630.0,108620.0,5.56031043]
[1760630702652,0.02663084,108660.0,108620.0,6.16945201]
[1760630702863,0.02663084,108660.0,108650.0,0.73971105]
[1760630702864,0.13839673,108660.0,108650.0,0.73971105]
[1760630703076,0.12,108660.0,108650.0,1.05773959]
[1760630703293,0.12,108660.0,108650.0,1.57719105]
[1760630703537,0.12,108660.0,108650.0,0.62025959]
[1760630703758,0.12,108660.0,108650.0,1.10352877]
[1760630704176,0.12,108660.0,108650.0,0.51945146]
[1760630704413,0.12,108660.0,108620.0,0.72556313]
[1760630704638,0.18406203,108660.0,108620.0,8e-05]
[1760630704885,0.24326504,108660.0,108620.0,0.19341344]
[1760630705069,0.24326504,108660.0,108620.0,8e-05]
[1760630705070,0.18408965,108650.0,108620.0,8e-05]
[1760630705307,0.18409487,108640.0,108620.0,8e-05]
[1760630705526,0.1841112,108630.0,108620.0,8e-05]
[1760630705737,0.3041112,108630.0,108620.0,0.00012]
[1760630705954,0.12,108630.0,108620.0,0.00012]
[1760630706170,0.12,108630.0,108620.0,0.00016]
[1760630706591,0.3261805,108630.0,108620.0,0.00016]
[1760630706806,0.6661805,108630.0,108620.0,0.0002]
[1760630707031,0.68521862,108630.0,108620.0,0.0002]
[1760630707256,0.50110742,108630.0,108620.0,0.0002]
[1760630707469,0.13903812,108630.0,108620.0,0.18436815]
[1760630707675,0.13903812,108630.0,108620.0,0.00024]
[1760630707676,0.12,108630.0,108620.0,0.00024]
[1760630707884,0.12,108630.0,108620.0,0.01865281]
[1760630708098,0.12,108630.0,108620.0,0.19263302]
[1760630708318,0.12,108630.0,108620.0,0.18440815]
[1760630708528,0.12,108630.0,108620.0,0.19825989]
[1760630708995,0.12,108630.0,108620.0,1.09389363]
[1760630709214,0.12,108630.0,108620.0,1.08004189]
[1760630709877,0.12,108630.0,108620.0,1.16973201]
[1760630710087,0.12,108630.0,108620.0,1.05028055]
[1760630710305,0.01839673,108670.0,108660.0,0.18406037]
[1760630710514,0.13839673,108670.0,108650.0,0.18407689]
[1760630710943,0.12,108670.0,108660.0,0.01840603]
[1760630711194,0.12,108670.0,108650.0,0.18407662]
[1760630711400,0.12,108670.0,108660.0,0.2024664]
[1760630711615,0.12,108670.0,108660.0,0.18406037]
[1760630711821,0.12,108670.0,108650.0,0.70352686]
[1760630712038,0.12,108670.0,108650.0,0.51945146]
[1760630712254,0.12,108670.0,108640.0,0.71275019]
[1760630712477,0.30404546,108670.0,108640.0,0.51945146]
[1760630712688,0.12,108670.0,108650.0,0.18407706]
[1760630712895,0.12,108670.0,108650.0,0.20248479]
[1760630713121,0.12,108670.0,108640.0,0.71324977]
[1760630713330,0.12,108670.0,108650.0,0.71914522]
[1760630713551,0.12,108670.0,108660.0,0.18406037]
[1760630714195,0.12,108670.0,108660.0,0.70351183]
[1760630714842,0.12,108670.0,108660.0,1.07969411]
[1760630715494,0.0002,108700.0,108690.0,0.18400956]
[1760630715738,0.0002,108700.0,108690.0,0.70346102]
[1760630715739,0.1302,108700.0,108690.0,0.70346102]
[1760630716386,0.1302,108700.0,108690.0,0.7396433]
[1760630716595,0.1302,108700.0,108690.0,0.70346102]
[1760630716810,0.1302,108700.0,108690.0,0.70396069]
[1760630717017,0.1302,108700.0,108690.0,0.18450923]
[1760630717248,0.1302,108700.0,108690.0,0.00049967]
[1760630717462,0.1302,108700.0,108690.0,0.71635101]
[1760630717640,0.1302,108700.0,108690.0,0.18450923]
[1760630717902,0.1302,108700.0,108690.0,0.70396069]
[1760630718318,0.1302,108700.0,108690.0,0.74014297]
[1760630719499,0.1302,108700.0,108690.0,0.70396069]
[1760630719701,0.1302,108700.0,108690.0,0.74014297]
[1760630720247,0.1302,108700.0,108690.0,1.16983309]
[1760630720248,1e-08,108700.0,108690.0,1.16983309]
[1760630720486,0.01839673,108740.0,108720.0,0.18395879]
[1760630720721,0.01839673,108740.0,108730.0,0.71776284]
[1760630720722,0.14839673,108740.0,108730.0,0.71776284]
[1760630720922,0.14839673,108740.0,108730.0,0.73957561]
[1760630720923,0.13,108740.0,108730.0,0.73957561]
[1760630721131,0.13182206,108740.0,108730.0,0.73957561]
[1760630721361,0.13182206,108740.0,108730.0,0.18394187]
[1760630721874,0.13182206,108740.0,108730.0,0.70339333]
[1760630722120,0.13182206,108740.0,108730.0,0.703893]
[1760630722810,0.13182206,108740.0,108730.0,1.13358312]
[1760630723031,0.0252,108760.0,108750.0,0.7033595]
[1760630723245,0.1552,108760.0,108750.0,0.7033595]
[1760630723461,0.025,108770.0,108760.0,0.18389113]
[1760630723690,0.025,108770.0,108760.0,0.69966003]
[1760630723924,0.025,108770.0,108760.0,0.18389113]
[1760630724134,0.035,108770.0,108760.0,0.18389113]
[1760630724346,0.035,108770.0,108760.0,0.69966003]
[1760630724557,0.035,108770.0,108760.0,0.92640544]
[1760630724778,0.035,108770.0,108760.0,0.18389113]
[1760630724989,0.035,108770.0,108750.0,0.18390804]
[1760630725233,0.06677134,108770.0,108760.0,0.002]
[1760630725450,0.035,108770.0,108760.0,0.002]
[1760630725669,0.035,108770.0,108760.0,0.18589113]
[1760630725885,0.035,108770.0,108760.0,0.92840544]
[1760630726126,0.035,108770.0,108760.0,0.18589113]
[1760630726569,0.035,108770.0,108760.0,0.92840544]
[1760630726788,0.03156985,108790.0,108780.0,0.18385732]
[1760630727004,0.12,108790.0,108770.0,0.19306794]
[1760630727219,0.12,108790.0,108760.0,0.18589014]
[1760630727459,0.12,108790.0,108770.0,0.1838738]
[1760630727668,0.12,108790.0,108750.0,0.2033037]
[1760630727878,0.34,108780.0,108750.0,0.20230436]
[1760630728092,0.46,108780.0,108750.0,0.21199943]
[1760630728306,0.46,108780.0,108750.0,0.19360126]
[1760630728526,0.46,108780.0,108770.0,0.18387423]
[1760630728981,0.12,108780.0,108770.0,0.18387423]
[1760630729205,0.12,108780.0,108760.0,0.18389096]
[1760630729422,0.12242819,108780.0,108760.0,0.18389017]
[1760630729630,0.12,108780.0,108770.0,0.20226165]
[1760630729841,0.12,108780.0,108770.0,0.18387423]
[1760630730962,0.12,108780.0,108770.0,0.18487423]
[1760630731837,0.12,108780.0,108770.0,0.18387423]
[1760630732060,0.12,108780.0,108770.0,0.001]
[1760630732497,0.12,108780.0,108750.0,0.0188964]
[1760630732498,0.18387696,108770.0,108750.0,0.0188964]
[1760630732742,0.46,108770.0,108750.0,0.2028006]
[1760630733157,0.46,108770.0,108750.0,0.18440387]
[1760630733375,0.18389113,108760.0,108750.0,0.00049967]
[1760630733592,0.13,108760.0,108750.0,0.18440707]
[1760630733858,0.13,108760.0,108750.0,0.00049967]
[1760630734135,0.47,108760.0,108750.0,0.00049967]
[1760630734377,0.47,108760.0,108750.0,0.00149967]
[1760630734589,0.47,108760.0,108750.0,0.00049967]
[1760630734800,0.47,108760.0,108750.0,0.01889047]
[1760630735045,0.47,108760.0,108750.0,0.18540771]
[1760630735287,0.13,108760.0,108750.0,0.20279851]